fUST/lending_fUST_20251001
["ID","MTS","AMOUNT","RATE_DAILY","PERIOD"]
[388697110,1759320661667,-3096.843287,0.00020547,2]
[388697111,1759320661677,-513.99,0.00020547,2]
[388697112,1759320661686,-151.0,0.00020547,2]
[388697113,1759320661695,-500.0,0.00020547,2]
[388697114,1759320661704,-500.0,0.00020547,2]
[388697115,1759320661714,-1732.6,0.00020547,2]
[388697116,1759320661724,-609.58,0.00020547,2]
[388697117,1759320661734,-1538.32,0.00020547,2]
[388697118,1759320661743,-500.0,0.00020547,2]
[388697119,1759320661754,-151.0,0.00020547,2]
[388697120,1759320661764,-151.0,0.00020547,2]
[388697121,1759320661774,-500.0,0.00020547,2]
[388697122,1759320661783,-1690.93,0.00020547,2]
[388697123,1759320661793,-1362.49,0.00020547,2]
[388697124,1759320661803,-3743.6,0.00020547,2]
[388697125,1759320661812,-688.66,0.00020547,2]
[388697126,1759320661821,-500.0,0.00020547,2]
[388697127,1759320661831,-687.26,0.00020547,2]
[388697128,1759320661841,-1581.1,0.00020547,2]
[388697129,1759320661852,-532.14,0.00020547,2]
[388697130,1759320661861,-5446.89,0.00020547,2]
[388697131,1759320661870,-784.27,0.00020547,2]
[388697132,1759320661880,-870.41,0.00020547,2]
[388697133,1759320661890,-1124.52,0.00020547,2]
[388697134,1759320661900,-1500.68,0.00020547,2]
[388697135,1759320661910,-1329.71,0.00020547,2]
[388697136,1759320661920,-1828.66,0.00020547,2]
[388697137,1759320661929,-500.0,0.00020547,2]
[388697138,1759320661938,-500.0,0.00020547,2]
[388697139,1759320661948,-996.02,0.00020547,2]
[388697140,1759320661958,-641.62,0.00020547,2]
[388697141,1759320661967,-1631.9,0.00020547,2]
[388697142,1759320661977,-1322.05,0.00020547,2]
[388697143,1759320661986,-1948.55,0.00020547,2]
[388697144,1759320661996,-500.0,0.00020547,2]
[388697145,1759320662005,-364.23478486,0.00020547,2]
[388697146,1759320662014,-2760.55,0.00020547,2]
[388697147,1759320662024,-500.0,0.00020547,2]
[388697148,1759320662034,-2922.0,0.00020547,2]
[388697149,1759320662043,-500.0,0.00020547,2]
[388697150,1759320662052,-1700.34,0.00020547,2]
[388697151,1759320662062,-3927.86,0.00020547,2]
[388697152,1759320662071,-500.0,0.00020547,2]
[388697153,1759320662080,-151.0,0.00020547,2]
[388697154,1759320662090,-151.0,0.00020547,2]
[388697155,1759320662100,-2025.65,0.00020547,2]
[388697156,1759320662110,-151.0,0.00020547,2]
[388697157,1759320662119,-500.0,0.00020547,2]
[388697158,1759320662128,-941.44,0.00020547,2]
[388697159,1759320662137,-812.39,0.00020547,2]
[388697160,1759320662146,-928.86,0.00020547,2]
[388697161,1759320662156,-500.0,0.00020548,2]
[388697162,1759320662166,-260.0,0.00020558,2]
[388697163,1759320662176,-151.0,0.00020568,2]
[388697164,1759320662186,-1500.0,0.00020568,2]
[388697165,1759320662197,-1500.0,0.00020568,2]
[388697166,1759320662207,-1500.0,0.00020568,2]
[388697167,1759320662216,-1500.0,0.00020568,2]
[388697168,1759320662226,-1500.0,0.00020568,2]
[388697169,1759320662235,-1500.0,0.00020568,2]
[388697170,1759320662246,-1139.71961339,0.00020568,2]
[388697171,1759320662256,-2045.04437572,0.00020589,2]
[388697172,1759320662265,-242.0,0.00020675,2]
[388697173,1759320662275,-243.0,0.0002069,2]
[388697174,1759320662284,-151.0,0.000207,3]
[388697175,1759320662294,-1680.0,0.00020792,2]
[388697176,1759320662304,-329.169,0.000208,2]
[388697177,1759320662315,-242.0,0.00020802,2]
[388697178,1759320662325,-2000.0,0.00020816,2]
[388697179,1759320662336,-2000.0,0.00020816,2]
[388697180,1759320662345,-2000.0,0.00020816,2]
[388697181,1759320662355,-2000.0,0.00020816,2]
[388697182,1759320662364,-2000.0,0.00020816,2]
[388697183,1759320662373,-2000.0,0.00020816,2]
[388697184,1759320662383,-2000.0,0.00020816,2]
[388697185,1759320662393,-2000.0,0.00020816,2]
[388697186,1759320662403,-1000.71,0.0002082,2]
[388697187,1759320662412,-242.0,0.00020821,2]
[388697188,1759320662422,-500.0,0.00020821,2]
[388697189,1759320662431,-694.6,0.00020821,2]
[388697190,1759320662441,-500.0,0.00020821,2]
[388697191,1759320662450,-151.0,0.00020821,7]
[388697192,1759320662464,-500.0,0.00020821,2]
[388697193,1759320662474,-151.0,0.00020821,7]
[388697194,1759320662483,-176.85534,0.00020821,7]
[388697195,1759320662493,-177.10026579,0.00020821,2]
[388697196,1759320662505,-500.0,0.00020821,2]
[388697197,1759320662515,-736.33,0.00020821,2]
[388697198,1759320662524,-500.0,0.00020821,2]
[388697199,1759320662536,-505.58,0.00020821,2]
[388697200,1759320662546,-737.15,0.00020821,2]
[388697201,1759320662664,-500.0,0.00020821,2]
[388697202,1759320662675,-989.99,0.00020821,2]
[388697203,1759320662685,-965.61,0.00020821,2]
[388697204,1759320662695,-525.24,0.00020821,2]
[388697205,1759320662705,-840.33,0.00020821,2]
[388697206,1759320662714,-500.0,0.00020821,2]
[388697207,1759320662724,-500.0,0.00020821,2]
[388697208,1759320662734,-500.0,0.00020821,2]
[388697209,1759320662743,-500.0,0.00020821,2]
[388697210,1759320662753,-843.24,0.00020821,2]
[388697211,1759320662763,-846.04,0.00020821,2]
[388697212,1759320662772,-2147.04,0.00020821,2]
[388697213,1759320662781,-500.0,0.00020821,2]
[388697214,1759320662791,-550.58,0.00020821,2]
[388697215,1759320662801,-551.88158982,0.00020821,2]
[388697216,1759320662809,-500.0,0.00020821,2]
[388697217,1759320662819,-500.0,0.00020821,2]
[388697218,1759320662828,-707.69,0.00020821,2]
[388697219,1759320662838,-833.33,0.00020821,2]
[388697220,1759320662847,-500.0,0.00020821,2]
[388697221,1759320662857,-151.0,0.00020821,2]
[388697222,1759320662866,-721.98,0.00020821,2]
[388697223,1759320662877,-1279.89,0.00020821,2]
[388697224,1759320662887,-500.0,0.00020821,2]
[388697225,1759320662896,-745.73,0.00020821,2]
[388697226,1759320662906,-500.0,0.00020821,2]
[388697227,1759320662916,-715.31,0.00020821,2]
[388697228,1759320662925,-644.85688678,0.00020821,2]
[388697229,1759320662935,-2003.68,0.00020821,2]
[388697230,1759320662944,-151.0,0.00020821,2]
[388697231,1759320662954,-518.67,0.00020821,2]
[388697232,1759320662964,-500.0,0.00020821,2]
[388697233,1759320662974,-1225.59,0.00020821,2]
[388697234,1759320662984,-2607.87,0.00020821,2]
[388697235,1759320662993,-582.49,0.00020821,2]
[388697236,1759320663003,-500.0,0.00020821,2]
[388697237,1759320663013,-500.0,0.00020821,2]
[388697238,1759320663022,-2194.54,0.00020821,2]
[388697239,1759320663032,-500.0,0.00020821,2]
[388697240,1759320663041,-1000.83,0.00020821,2]
[388697241,1759320663051,-500.0,0.00020821,2]
[388697242,1759320663061,-500.0,0.00020821,2]
[388697243,1759320663070,-480.0,0.00020821,2]
[388697244,1759320663079,-500.0,0.00020821,2]
[388697245,1759320663089,-480.0,0.00020821,2]
[388697246,1759320663098,-500.0,0.00020821,2]
[388697247,1759320663107,-617.87,0.00020821,2]
[388697248,1759320663118,-1052.05,0.00020821,2]
[388697249,1759320663127,-514.89,0.00020821,2]
[388697250,1759320663136,-672.57,0.00020821,2]
[388697251,1759320663145,-500.0,0.00020821,2]
[388697252,1759320663155,-2195.31,0.00020821,2]
[388697253,1759320663164,-853.86,0.00020821,2]
[388697254,1759320663174,-525.14,0.00020821,2]
[388697255,1759320663184,-1144.28,0.00020821,2]
[388697256,1759320663194,-500.0,0.00020821,2]
[388697257,1759320663203,-500.0,0.00020821,2]
[388697258,1759320663212,-500.0,0.00020821,2]
[388697259,1759320663222,-837.14,0.00020821,2]
[388697260,1759320663231,-500.0,0.00020821,2]
[388697261,1759320663240,-344.38781744,0.00020821,2]
[388697262,1759320663249,-500.0,0.00020821,2]
[388697263,1759320663259,-500.0,0.00020821,2]
[388697264,1759320663269,-1814.51,0.00020821,2]
[388697265,1759320663279,-626.76,0.00020821,2]
[388697266,1759320663289,-500.0,0.00020821,2]
[388697267,1759320663299,-837.62,0.00020821,2]
[388697268,1759320663308,-3011.93,0.00020821,2]
[388697269,1759320663318,-3103.44,0.00020821,2]
[388697270,1759320663327,-500.0,0.00020821,2]
[388697271,1759320663337,-9707.79,0.00020821,2]
[388697272,1759320663348,-558.29,0.00020821,2]
[388697273,1759320663357,-623.69,0.00020821,2]
[388697274,1759320663367,-500.0,0.00020821,2]
[388697275,1759320663377,-500.0,0.00020821,2]
[388697276,1759320663387,-500.0,0.00020821,2]
[388697277,1759320663396,-1398.77,0.00020821,2]
[388697278,1759320663406,-500.0,0.00020821,2]
[388697279,1759320663415,-777.44,0.00020821,2]
[388697280,1759320663426,-2943.09,0.00020821,2]
[388697281,1759320663435,-769.37,0.00020821,2]
[388697282,1759320663445,-633.84,0.00020821,2]
[388697283,1759320663455,-699.87,0.00020821,2]
[388697284,1759320663468,-725.68,0.00020821,2]
[388697285,1759320663477,-536.36,0.00020821,2]
[388697286,1759320663488,-1416.79,0.00020821,2]
[388697287,1759320663499,-500.0,0.00020821,2]
[388697288,1759320663508,-890.93,0.00020821,2]
[388697289,1759320663518,-988.01,0.00020821,2]
[388697290,1759320663527,-542.9,0.00020821,2]
[388697291,1759320663539,-1581.99,0.00020821,2]
[388697292,1759320663549,-3836.84,0.00020821,2]
[388697293,1759320663558,-500.0,0.00020821,2]
[388697294,1759320663568,-500.0,0.00020821,2]
[388697295,1759320663577,-768.33,0.00020821,2]
[388697296,1759320663586,-753.42,0.00020821,2]
[388697297,1759320663595,-1397.1,0.00020821,2]
[388697298,1759320663604,-1175.95,0.00020821,2]
[388697299,1759320663613,-1131.51,0.00020821,2]
[388697300,1759320663623,-1040.35,0.00020821,2]
[388697301,1759320663633,-1765.72,0.00020821,2]
[388697302,1759320663642,-500.0,0.00020821,2]
[388697303,1759320663654,-1358.96,0.00020821,2]
[388697304,1759320663664,-914.43,0.00020821,2]
[388697305,1759320663674,-500.0,0.00020821,2]
[388697306,1759320663684,-1077.71,0.00020821,2]
[388697307,1759320663694,-1512.41,0.00020821,2]
[388697308,1759320663703,-1494.53,0.00020821,2]
[388697309,1759320663713,-1192.61,0.00020821,2]
[388697310,1759320663723,-2593.98,0.00020821,2]
[388697311,1759320663732,-500.0,0.00020821,2]
[388697312,1759320663741,-500.0,0.00020821,2]
[388697313,1759320663751,-912.84,0.00020821,2]
[388697314,1759320663760,-1365.62,0.00020821,2]
[388697315,1759320663770,-500.0,0.00020821,2]
[388697316,1759320663780,-2301.49,0.00020821,2]
[388697317,1759320663790,-1635.84,0.00020821,2]
[388697318,1759320663800,-500.0,0.00020821,2]
[388697319,1759320663810,-1331.41,0.00020821,2]
[388697320,1759320663821,-753.6,0.00020821,2]
[388697321,1759320663831,-608.8,0.00020821,2]
[388697322,1759320663841,-1410.65,0.00020821,2]
[388697323,1759320663851,-500.0,0.00020821,2]
[388697324,1759320663860,-969.33,0.00020821,2]
[388697325,1759320663870,-1287.65,0.00020821,2]
[388697326,1759320663879,-513.99,0.00020821,2]
[388697327,1759320663888,-500.0,0.00020821,2]
[388697328,1759320663899,-1732.6,0.00020821,2]
[388697329,1759320663909,-609.58,0.00020821,2]
[388697330,1759320663919,-1538.32,0.00020821,2]
[388697331,1759320663929,-498.91921076,0.00020821,2]
[388697332,1759320663940,-500.0,0.00020821,2]
[388697333,1759320663949,-1690.93,0.00020821,2]
[388697334,1759320663959,-1362.49,0.00020821,2]
[388697335,1759320663968,-3743.6,0.00020821,2]
[388697336,1759320663977,-688.66,0.00020821,2]
[388697337,1759320663987,-500.0,0.00020821,2]
[388697338,1759320663996,-687.26,0.00020821,2]
[388697339,1759320664006,-1581.1,0.00020821,2]
[388697340,1759320664015,-532.14,0.00020821,2]
[388697341,1759320664025,-5446.89,0.00020821,2]
[388697342,1759320664035,-784.27,0.00020821,2]
[388697343,1759320664045,-870.41,0.00020821,2]
[388697344,1759320664054,-1124.52,0.00020821,2]
[388697345,1759320664063,-1500.68,0.00020821,2]
[388697346,1759320664072,-1329.71,0.00020821,2]
[388697347,1759320664081,-1828.66,0.00020821,2]
[388697348,1759320664091,-500.0,0.00020821,2]
[388697349,1759320664100,-500.0,0.00020821,2]
[388697350,1759320664110,-996.02,0.00020821,2]
[388697351,1759320664119,-641.62,0.00020821,2]
[388697352,1759320664128,-1631.9,0.00020821,2]
[388697353,1759320664137,-1322.05,0.00020821,2]
[388697354,1759320664147,-1948.55,0.00020821,2]
[388697355,1759320664156,-500.0,0.00020821,2]
[388697356,1759320664167,-2760.55,0.00020821,2]
[388697357,1759320664177,-500.0,0.00020821,2]
[388697358,1759320664186,-2922.0,0.00020821,2]
[388697359,1759320664198,-500.0,0.00020821,2]
[388697360,1759320664207,-1700.34,0.00020821,2]
[388697361,1759320664217,-3927.86,0.00020821,2]
[388697362,1759320664227,-500.0,0.00020821,2]
[388697363,1759320664237,-151.0,0.00020821,2]
[388697364,1759320664247,-151.0,0.00020821,2]
[388697365,1759320664256,-2025.65,0.00020821,2]
[388697366,1759320664265,-205.931712,0.00020821,2]
[388697367,1759320664274,-500.0,0.00020821,2]
[388697368,1759320664283,-941.44,0.00020821,2]
[388697369,1759320664293,-928.86,0.00020821,2]
[388697370,1759320664303,-179.342345,0.00020852,7]
[388697371,1759320664313,-420.0,0.00020883,2]
[388697372,1759320664323,-242.0,0.00020895,2]
[388697373,1759320664332,-1680.0,0.00020917,2]
[388697374,1759320664341,-242.0,0.00020924,2]
[388697375,1759320664350,-242.0,0.00020942,2]
[388697376,1759320664359,-166.0,0.00020949,2]
[388697377,1759320664368,-243.0,0.00020962,2]
[388697378,1759320664377,-46805.53714306,0.00020967,2]
[388697379,1759320664386,-220.63482455,0.00020993,2]
[388697380,1759320664396,-242.0,0.00020998,2]
[388697381,1759320664405,-243.0,0.00021016,2]
[388697382,1759320664415,-179.342345,0.00021057,2]
[388697383,1759320664425,-242.0,0.00021089,2]
[388697384,1759320664433,-155.0,0.00021095,2]
[388697385,1759320664443,-253.279,0.00021095,2]
[388697386,1759320664453,-500.0,0.00021095,2]
[388697387,1759320664466,-694.6,0.00021095,2]
[388697388,1759320664475,-500.0,0.00021095,2]
[388697389,1759320664484,-500.0,0.00021095,2]
[388697390,1759320664493,-500.0,0.00021095,2]
[388697391,1759320664505,-736.33,0.00021095,2]
[388697392,1759320664515,-528.18657132,0.00021095,2]
[388697393,1759320664525,-505.58,0.00021095,2]
[388697394,1759320664537,-737.15,0.00021095,2]
[388697395,1759320664546,-500.0,0.00021095,2]
[388697396,1759320664560,-989.99,0.00021095,2]
[388697397,1759320664570,-965.61,0.00021095,2]
[388697398,1759320664579,-525.24,0.00021095,2]
[388697399,1759320664588,-840.33,0.00021095,2]
[388697400,1759320664597,-473.33838339,0.00021095,2]
[388697401,1759320664705,-500.0,0.00021095,2]
[388697402,1759320664715,-226.97658093,0.00021095,2]
[388697403,1759320664724,-500.0,0.00021095,2]
[388697404,1759320664734,-843.24,0.00021095,2]
[388697405,1759320664743,-846.04,0.00021095,2]
[388697406,1759320664753,-2147.04,0.00021095,2]
[388697407,1759320664762,-550.58,0.00021095,2]
[388697408,1759320664772,-500.0,0.00021095,2]
[388697409,1759320664781,-500.0,0.00021095,2]
[388697410,1759320664791,-500.0,0.00021095,2]
[388697411,1759320664800,-707.69,0.00021095,2]
[388697412,1759320664809,-833.33,0.00021095,2]
[388697413,1759320664818,-500.0,0.00021095,2]
[388697414,1759320664827,-721.98,0.00021095,2]
[388697415,1759320664836,-1279.89,0.00021095,2]
[388697416,1759320664846,-500.0,0.00021095,2]
[388697417,1759320664855,-745.73,0.00021095,2]
[388697418,1759320664865,-500.0,0.00021095,2]
[388697419,1759320664875,-715.31,0.00021095,2]
[388697420,1759320664885,-2003.68,0.00021095,2]
[388697421,1759320664895,-518.67,0.00021095,2]
[388697422,1759320664904,-500.0,0.00021095,2]
[388697423,1759320664913,-1225.59,0.00021095,2]
[388697424,1759320664922,-2607.87,0.00021095,2]
[388697425,1759320664931,-582.49,0.00021095,2]
[388697426,1759320664940,-500.0,0.00021095,2]
[388697427,1759320664949,-500.0,0.00021095,2]
[388697428,1759320664958,-2194.54,0.00021095,2]
[388697429,1759320664967,-2194.54,0.00021095,2]
[388697430,1759320664977,-458.49835277,0.00021095,2]
[388697431,1759320664986,-1000.83,0.00021095,2]
[388697432,1759320664995,-500.0,0.00021095,2]
[388697433,1759320665005,-500.0,0.00021095,2]
[388697434,1759320665015,-500.0,0.00021095,2]
[388697435,1759320665023,-617.87,0.00021095,2]
[388697436,1759320665033,-1052.05,0.00021095,2]
[388697437,1759320665042,-514.89,0.00021095,2]
[388697438,1759320665051,-672.57,0.00021095,2]
[388697439,1759320665060,-500.0,0.00021095,2]
[388697440,1759320665069,-2195.31,0.00021095,2]
[388697441,1759320665078,-853.86,0.00021095,2]
[388697442,1759320665087,-525.14,0.00021095,2]
[388697443,1759320665096,-1144.28,0.00021095,2]
[388697444,1759320665105,-500.0,0.00021095,2]
[388697445,1759320665115,-500.0,0.00021095,2]
[388697446,1759320665123,-500.0,0.00021095,2]
[388697447,1759320665133,-837.14,0.00021095,2]
[388697448,1759320665142,-516.40099664,0.00021095,2]
[388697449,1759320665151,-500.0,0.00021095,2]
[388697450,1759320665161,-253.23238886,0.00021095,2]
[388697451,1759320665170,-1814.51,0.00021095,2]
[388697452,1759320665181,-626.76,0.00021095,2]
[388697453,1759320665190,-604.02,0.00021095,2]
[388697454,1759320665200,-837.62,0.00021095,2]
[388697455,1759320665211,-3011.93,0.00021095,2]
[388697456,1759320665221,-3103.44,0.00021095,2]
[388697457,1759320665234,-500.0,0.00021095,2]
[388697458,1759320665243,-9707.79,0.00021095,2]
[388697459,1759320665254,-558.29,0.00021095,2]
[388697460,1759320665263,-623.69,0.00021095,2]
[388697461,1759320665272,-500.0,0.00021095,2]
[388697462,1759320665281,-500.0,0.00021095,2]
[388697463,1759320665291,-500.0,0.00021095,2]
[388697464,1759320665300,-1398.77,0.00021095,2]
[388697465,1759320665311,-500.0,0.00021095,2]
[388697466,1759320665319,-777.44,0.00021095,2]
[388697467,1759320665328,-2943.09,0.00021095,2]
[388697468,1759320665338,-769.37,0.00021095,2]
[388697469,1759320665347,-633.84,0.00021095,2]
[388697470,1759320665356,-699.87,0.00021095,2]
[388697471,1759320665365,-725.68,0.00021095,2]
[388697472,1759320665374,-536.36,0.00021095,2]
[388697473,1759320665383,-1416.79,0.00021095,2]
[388697474,1759320665392,-500.0,0.00021095,2]
[388697475,1759320665402,-890.93,0.00021095,2]
[388697476,1759320665411,-988.01,0.00021095,2]
[388697477,1759320665421,-542.9,0.00021095,2]
[388697478,1759320665431,-1581.99,0.00021095,2]
[388697479,1759320665440,-3836.84,0.00021095,2]
[388697480,1759320665449,-500.0,0.00021095,2]
[388697481,1759320665464,-500.0,0.00021095,2]
[388697482,1759320665473,-768.33,0.00021095,2]
[388697483,1759320665482,-753.42,0.00021095,2]
[388697484,1759320665491,-1397.1,0.00021095,2]
[388697485,1759320665502,-1175.95,0.00021095,2]
[388697486,1759320665512,-1131.51,0.00021095,2]
[388697487,1759320665521,-1040.35,0.00021095,2]
[388697488,1759320665532,-1765.72,0.00021095,2]
[388697489,1759320665542,-500.0,0.00021095,2]
[388697490,1759320665552,-1358.96,0.00021095,2]
[388697491,1759320665562,-914.43,0.00021095,2]
[388697492,1759320665571,-500.0,0.00021095,2]
[388697493,1759320665581,-1077.71,0.00021095,2]
[388697494,1759320665590,-1512.41,0.00021095,2]
[388697495,1759320665599,-1494.53,0.00021095,2]
[388697496,1759320665609,-1192.61,0.00021095,2]
[388697497,1759320665619,-2593.98,0.00021095,2]
[388697498,1759320665628,-500.0,0.00021095,2]
[388697499,1759320665638,-500.0,0.00021095,2]
[388697500,1759320665649,-912.84,0.00021095,2]
[388697501,1759320665658,-1365.62,0.00021095,2]
[388697502,1759320665667,-500.0,0.00021095,2]
[388697503,1759320665677,-2301.49,0.00021095,2]
[388697504,1759320665687,-500.0,0.00021095,2]
[388697505,1759320665697,-1635.84,0.00021095,2]
[388697506,1759320665709,-1331.41,0.00021095,2]
[388697507,1759320665719,-753.6,0.00021095,2]
[388697508,1759320665728,-608.8,0.00021095,2]
[388697509,1759320665739,-1410.65,0.00021095,2]
[388697510,1759320665748,-500.0,0.00021095,2]
[388697511,1759320665757,-969.33,0.00021095,2]
[388697512,1759320665767,-1287.65,0.00021095,2]
[388697513,1759320665776,-513.99,0.00021095,2]
[388697514,1759320665786,-500.0,0.00021095,2]
[388697515,1759320665795,-1732.6,0.00021095,2]
[388697516,1759320665804,-609.58,0.00021095,2]
[388697517,1759320665814,-1538.32,0.00021095,2]
[388697518,1759320665823,-500.0,0.00021095,2]
[388697519,1759320665832,-1690.93,0.00021095,2]
[388697520,1759320665841,-1362.49,0.00021095,2]
[388697521,1759320665850,-3743.6,0.00021095,2]
[388697522,1759320665859,-688.66,0.00021095,2]
[388697523,1759320665869,-500.0,0.00021095,2]
[388697524,1759320665877,-687.26,0.00021095,2]
[388697525,1759320665887,-1581.1,0.00021095,2]
[388697526,1759320665896,-5446.89,0.00021095,2]
[388697527,1759320665905,-532.14,0.00021095,2]
[388697528,1759320665915,-784.27,0.00021095,2]
[388697529,1759320665924,-870.41,0.00021095,2]
[388697530,1759320665934,-1124.52,0.00021095,2]
[388697531,1759320665943,-1500.68,0.00021095,2]
[388697532,1759320665953,-1329.71,0.00021095,2]
[388697533,1759320665962,-1828.66,0.00021095,2]
[388697534,1759320665971,-500.0,0.00021095,2]
[388697535,1759320665980,-996.02,0.00021095,2]
[388697536,1759320665990,-500.0,0.00021095,2]
[388697537,1759320665999,-641.62,0.00021095,2]
[388697538,1759320666008,-1631.9,0.00021095,2]
[388697539,1759320666018,-1322.05,0.00021095,2]
[388697540,1759320666028,-1948.55,0.00021095,2]
[388697541,1759320666037,-500.0,0.00021095,2]
[388697542,1759320666047,-2760.55,0.00021095,2]
[388697543,1759320666056,-500.0,0.00021095,2]
[388697544,1759320666066,-2922.0,0.00021095,2]
[388697545,1759320666075,-500.0,0.00021095,2]
[388697546,1759320666084,-1700.34,0.00021095,2]
[388697547,1759320666094,-3927.86,0.00021095,2]
[388697548,1759320666102,-500.0,0.00021095,2]
[388697549,1759320666112,-2025.65,0.00021095,2]
[388697550,1759320666122,-500.0,0.00021095,2]
[388697551,1759320666131,-941.44,0.00021095,2]
[388697552,1759320666140,-168.0,0.00021097,2]
[388697553,1759320666149,-1009.926689,0.000211,2]
[388697554,1759320666159,-360.0,0.00021106,2]
[388697555,1759320666168,-1434.47959946,0.00021116,2]
[388697556,1759320666177,-2000.0,0.00021116,2]
[388697557,1759320666187,-2000.0,0.00021116,2]
[388697558,1759320666196,-1264.00431902,0.00021116,2]
[388697559,1759320666205,-2000.0,0.00021116,2]
[388697560,1759320666214,-2000.0,0.00021116,2]
[388697561,1759320666224,-168.0,0.00021147,2]
[388697562,1759320666233,-19099.3079503,0.00021227,2]
[388697563,1759320666243,-179.342345,0.0002124,7]
[388697564,1759320666252,-3000.0,0.000213,2]
[388697565,1759320666262,-600.0,0.00021302,2]
[388697566,1759320666271,-3000.0,0.0002131,2]
[388697567,1759320666280,-3499.685517,0.0002132,2]
[388697568,1759320666290,-166.0,0.00021321,2]
[388697569,1759320666299,-800.0,0.00021364,2]
[388697570,1759320666308,-500.0,0.00021364,2]
[388697571,1759320666317,-1199.6669652,0.00021364,2]
[388697572,1759320666327,-2500.0,0.00021364,2]
[388697573,1759320666337,-2500.0,0.00021364,2]
[388697574,1759320666347,-1018.64568241,0.00021364,2]
[388697575,1759320666357,-1083.77285568,0.00021364,2]
[388697576,1759320666367,-2500.0,0.00021364,2]
[388697577,1759320666377,-2500.0,0.00021364,2]
[388697578,1759320666388,-2500.0,0.00021364,2]
[388697579,1759320666397,-500.0,0.00021369,2]
[388697580,1759320666406,-694.6,0.00021369,2]
[388697581,1759320666416,-500.0,0.00021369,2]
[388697582,1759320666426,-500.0,0.00021369,2]
[388697583,1759320666435,-500.0,0.00021369,2]
[388697584,1759320666540,-736.33,0.00021369,2]
[388697585,1759320666551,-505.58,0.00021369,2]
[388697586,1759320666560,-737.15,0.00021369,2]
[388697587,1759320666569,-500.0,0.00021369,2]
[388697588,1759320666579,-989.99,0.00021369,2]
[388697589,1759320666588,-965.61,0.00021369,2]
[388697590,1759320666599,-525.24,0.00021369,2]
[388697591,1759320666608,-840.33,0.00021369,2]
[388697592,1759320666619,-500.0,0.00021369,2]
[388697593,1759320666631,-500.0,0.00021369,2]
[388697594,1759320666641,-843.24,0.00021369,2]
[388697595,1759320666651,-846.04,0.00021369,2]
[388697596,1759320666661,-2147.04,0.00021369,2]
[388697597,1759320666671,-550.58,0.00021369,2]
[388697598,1759320666681,-500.0,0.00021369,2]
[388697599,1759320666691,-500.0,0.00021369,2]
[388697600,1759320666701,-500.0,0.00021369,2]
[388697601,1759320666711,-707.69,0.00021369,2]
[388697602,1759320666721,-833.33,0.00021369,2]
[388697603,1759320666732,-500.0,0.00021369,2]
[388697604,1759320666743,-721.98,0.00021369,2]
[388697605,1759320666753,-1279.89,0.00021369,2]
[388697606,1759320666763,-500.0,0.00021369,2]
[388697607,1759320666772,-745.73,0.00021369,2]
[388697608,1759320666782,-500.0,0.00021369,2]
[388697609,1759320666791,-715.31,0.00021369,2]